bitfinex/quotes_BTCUSD_20241123
["timestamp","ask_amount","ask_price","bid_price","bid_amount"]
[1732362358863,0.019002,98164.0,98161.0,0.0521919]
[1732362359084,0.019002,98163.0,98161.0,0.0521919]
[1732362359339,0.1241,98167.0,98161.0,0.0521919]
[1732362368412,0.1249603,98167.0,98161.0,0.0521919]
[1732362372858,0.0008603,98167.0,98161.0,0.0521919]
[1732362373543,0.03167243,98166.0,98161.0,0.0521919]
[1732362377502,0.0498,98165.0,98161.0,0.0521919]
[1732362377712,0.0498,98162.0,98161.0,0.0521919]
[1732362377927,0.08147243,98162.0,98161.0,0.0521919]
[1732362378151,0.17267579,98162.0,98161.0,0.0521919]
[1732362379466,0.08147243,98162.0,98161.0,0.0521919]
[1732362381630,0.0498,98162.0,98142.0,0.05053771]
[1732362382127,0.0498,98162.0,98143.0,0.00467263]
[1732362382366,0.0498,98162.0,98144.0,0.05040463]
[1732362382786,0.0498,98162.0,98141.0,0.05027868]
[1732362382997,0.047,98162.0,98142.0,0.00467286]
[1732362383206,0.0749,98164.0,98130.0,0.19119118]
[1732362383207,0.047,98160.0,98143.0,0.05014229]
[1732362383429,0.047,98158.0,98144.0,0.00467195]
[1732362384304,0.047,98158.0,98145.0,0.05027089]
[1732362384740,0.047,98158.0,98147.0,0.05013841]
[1732362384958,0.0459,98158.0,98147.0,0.05013841]
[1732362385383,0.0459,98158.0,98148.0,0.00467631]
[1732362385801,0.0459,98158.0,98149.0,0.05066927]
[1732362386008,0.0459,98158.0,98151.0,0.05022027]
[1732362386224,0.0459,98158.0,98152.0,0.00467539]
[1732362386673,0.0459,98158.0,98153.0,0.05009399]
[1732362387189,0.0459,98158.0,98154.0,0.00467493]
[1732362387407,0.0459,98158.0,98155.0,0.05002588]
[1732362387630,0.0459,98158.0,98156.0,0.00467448]
[1732362389355,0.0459,98158.0,98157.0,0.05090546]
[1732362389812,0.0459,98158.0,98157.0,0.05557971]
[1732362391308,0.0459,98158.0,98130.0,0.05466768]
[1732362391728,0.0459,98158.0,98133.0,0.05005335]
[1732362392137,0.0468,98156.0,98133.0,0.05005335]
[1732362392519,0.0468,98156.0,98132.0,0.05079433]
[1732362393154,0.0468,98156.0,98125.0,0.0008605]
[1732362393355,0.0468,98156.0,98131.0,0.05022503]
[1732362393595,0.0468,98155.0,98131.0,0.05022503]
[1732362398627,0.0468,98153.0,98131.0,0.05022503]
[1732362399766,0.0468,98151.0,98131.0,0.05022503]
[1732362400235,0.0749,98165.0,98131.0,0.05022503]
[1732362400474,0.0749,98165.0,98133.0,0.05063363]
[1732362400687,0.0749,98165.0,98134.0,0.00633853]
[1732362400905,0.0749,98165.0,98133.0,0.05063363]
[1732362400906,0.0749,98165.0,98135.0,0.05692357]
[1732362401184,0.16604973,98165.0,98135.0,0.05692357]
[1732362401389,0.05466768,98160.0,98137.0,0.05001359]
[1732362402523,0.05466768,98160.0,98130.0,0.05025075]
[1732362403217,0.0457,98159.0,98130.0,0.05025075]
[1732362403448,0.0457,98156.0,98130.0,0.05025075]
[1732362403911,0.0457,98154.0,98130.0,0.05025075]
[1732362405302,0.0457,98154.0,98130.0,0.10491843]
[1732362405518,0.0457,98154.0,98132.0,0.05052115]
[1732362407074,0.05552828,98160.0,98134.0,0.05041862]
[1732362407075,0.01762828,98160.0,98134.0,0.05041862]
[1732362407517,0.09112396,98165.0,98134.0,0.05041862]
[1732362407765,0.05466768,98160.0,98136.0,0.05039344]
[1732362407993,0.05466768,98170.0,98138.0,0.05037419]
[1732362408230,0.06581076,98186.0,98138.0,0.05037419]
[1732362408447,0.01,98200.0,98138.0,0.05037419]
[1732362408448,0.08432038,98187.0,98138.0,0.05037419]
[1732362408695,0.08432038,98187.0,98137.0,0.0772]
[1732362408696,0.01,98200.0,98140.0,0.05039717]
[1732362408893,0.0404,98187.0,98140.0,0.05039717]
[1732362409127,0.05466768,98160.0,98142.0,0.05039096]
[1732362409357,0.0071,98199.0,98140.0,0.05039717]
[1732362409358,0.2036,98187.0,98140.0,0.05039717]
[1732362409592,0.0071,98199.0,98140.0,0.06435391]
[1732362409807,0.03165168,98198.0,98140.0,0.06435391]
[1732362410041,0.1511,98178.0,98140.0,0.06435391]
[1732362410255,0.1281,98159.0,98140.0,0.05039717]
[1732362410473,0.05466768,98160.0,98140.0,0.05039717]
[1732362410688,0.05466768,98160.0,98137.0,0.0772]
[1732362410689,0.023,98198.0,98142.0,0.05039096]
[1732362410909,0.05466768,98190.0,98150.0,0.05466768]
[1732362411129,0.03165421,98189.0,98150.0,0.05466768]
[1732362411370,0.03165338,98188.0,98151.0,0.00070658]
[1732362411614,0.05466768,98180.0,98151.0,0.00070658]
[1732362411836,0.03165338,98179.0,98151.0,0.00070658]
[1732362412044,0.03165338,98178.0,98151.0,0.00070658]
[1732362412247,0.03165338,98177.0,98151.0,0.00070658]
[1732362412457,0.05466768,98180.0,98151.0,0.00070658]
[1732362412663,0.023,98198.0,98151.0,0.00070658]
[1732362412664,0.03156391,98179.0,98151.0,0.00070658]
[1732362412932,0.023,98188.0,98151.0,0.00070658]
[1732362413137,0.05466768,98180.0,98151.0,0.00070658]
[1732362413344,0.05466768,98180.0,98141.0,0.0451]
[1732362413345,0.05456397,98179.0,98142.0,0.05039096]
[1732362413554,0.01466397,98178.0,98142.0,0.05039096]
[1732362413768,1.89316451,98187.0,98142.0,0.05039096]
[1732362413981,0.05466768,98180.0,98142.0,0.05039096]
[1732362414203,0.03089879,98179.0,98142.0,0.05039096]
[1732362414424,0.05466768,98180.0,98142.0,0.05039096]
[1732362414637,0.03089455,98179.0,98142.0,0.05039096]
[1732362414847,0.01476768,98180.0,98141.0,0.05092964]
[1732362415290,1.89316451,98187.0,98150.0,0.05466768]
[1732362415496,1.89316451,98187.0,98151.0,0.05049225]
[1732362415497,0.22780036,98180.0,98151.0,0.05049225]
[1732362415714,0.09631783,98181.0,98151.0,0.05049225]
[1732362416130,0.02022082,98177.0,98151.0,0.05049225]
[1732362416344,0.02999859,98176.0,98151.0,0.05049225]
[1732362416584,0.023,98184.0,98151.0,0.05049225]
[1732362416809,0.13665758,98175.0,98151.0,0.05049225]
[1732362417039,0.023,98186.0,98151.0,0.05049225]
[1732362417040,0.00415282,98176.0,98160.0,0.05466768]
[1732362417237,0.023,98186.0,98161.0,0.05088141]
[1732362417444,1.89316451,98187.0,98161.0,0.05088141]
[1732362417445,0.023,98184.0,98161.0,0.05088141]
[1732362417647,0.02949263,98183.0,98161.0,0.05088141]
[1732362417865,0.023,98186.0,98161.0,0.05088141]
[1732362418126,0.0431,98176.0,98161.0,0.05088141]
[1732362418572,0.0476,98177.0,98161.0,0.05088141]
[1732362419004,0.0008602,98178.0,98161.0,0.05088141]
[1732362419456,0.023,98186.0,98161.0,0.05088141]
[1732362419666,0.023,98184.0,98161.0,0.05088141]
[1732362419872,0.023,98186.0,98161.0,0.05088141]
[1732362423222,0.25076479,98186.0,98161.0,0.05088141]
[1732362423590,0.023,98184.0,98161.0,0.05088141]
[1732362423720,0.33632259,98183.0,98161.0,0.05088141]
[1732362423935,0.17432259,98182.0,98161.0,0.05088141]
[1732362424143,0.18221925,98184.0,98161.0,0.05088141]
[1732362424575,0.02021925,98185.0,98161.0,0.05088141]
[1732362424873,0.023,98186.0,98163.0,0.0502562]
[1732362425076,0.023,98184.0,98163.0,0.0502562]
[1732362425274,0.023,98186.0,98163.0,0.0502562]
[1732362425825,0.10933536,98173.0,98132.0,0.05009524]
[1732362426047,0.10702118,98160.0,98132.0,0.05009524]
[1732362426266,0.05466768,98150.0,98132.0,0.05009524]
[1732362426497,0.02919641,98149.0,98131.0,0.05066777]
[1732362426734,0.05466768,98150.0,98131.0,0.05066777]
[1732362426955,0.02919253,98149.0,98131.0,0.05066777]
[1732362427388,0.023,98153.0,98131.0,0.05066777]
[1732362427608,0.09102234,98140.0,98131.0,0.05066777]
[1732362428307,0.09102234,98142.0,98131.0,0.05066777]
[1732362428740,0.05466768,98150.0,98131.0,0.05066777]
[1732362428953,0.023,98155.0,98131.0,0.05066777]
[1732362429174,0.25055585,98155.0,98131.0,0.05066777]
[1732362429475,0.023,98153.0,98131.0,0.05066777]
[1732362429897,0.023,98155.0,98131.0,0.05066777]
[1732362430338,0.023,98157.0,98131.0,0.05066777]
[1732362431041,0.023,98155.0,98131.0,0.05066777]
[1732362431262,0.023,98153.0,98131.0,0.05152797]
[1732362431496,0.023,98155.0,98131.0,0.05152797]
[1732362431970,0.005232,98138.0,98131.0,0.0504376]
[1732362432525,0.023,98153.0,98131.0,0.0504376]
[1732362434613,0.07567985,98154.0,98131.0,0.1281376]
[1732362434856,0.06792837,98154.0,98131.0,0.1281376]
[1732362435084,0.05526653,98154.0,98131.0,0.1281376]
[1732362435310,0.05219564,98154.0,98131.0,0.1281376]
[1732362435533,0.04609074,98154.0,98131.0,0.1281376]
[1732362436190,0.0071,98153.0,98131.0,0.1281376]
[1732362441421,0.0978725,98153.0,98131.0,0.1281376]
[1732362441883,0.0907725,98152.0,98131.0,0.1281376]
[1732362442358,0.0071,98153.0,98131.0,0.1281376]
[1732362442827,0.09785704,98153.0,98132.0,0.1264]
[1732362443049,0.09785704,98153.0,98133.0,0.05054616]
[1732362443521,0.09075704,98152.0,98133.0,0.05054616]
[1732362444205,0.09075704,98152.0,98140.0,0.05466768]
[1732362444435,0.09785704,98153.0,98141.0,0.05056253]
[1732362444667,0.09075704,98152.0,98141.0,0.05056253]
[1732362445421,0.09075704,98152.0,98133.0,0.05054616]
[1732362445643,0.09075704,98151.0,98133.0,0.05054616]
[1732362446627,0.09075704,98150.0,98133.0,0.05054616]
[1732362449293,0.14323556,98153.0,98133.0,0.05054616]
[1732362449294,0.09075704,98149.0,98133.0,0.05054616]
[1732362449485,0.09075704,98150.0,98133.0,0.05054616]
[1732362450453,0.14323556,98153.0,98133.0,0.05054616]
[1732362450454,0.09075704,98149.0,98133.0,0.05054616]
[1732362450962,0.09075704,98150.0,98133.0,0.05054616]
[1732362451872,0.09075704,98149.0,98133.0,0.05054616]
[1732362452101,0.09075704,98149.0,98134.0,0.0468]
[1732362452344,0.09785704,98153.0,98130.0,0.05466768]
[1732362452583,0.09075704,98152.0,98131.0,0.05064141]
[1732362453706,0.0017208,98154.0,98131.0,0.05064141]
[1732362453707,0.09075704,98150.0,98131.0,0.05064141]
[1732362454367,0.09075704,98149.0,98131.0,0.05064141]
[1732362455336,0.09075704,98148.0,98133.0,0.0506988]
[1732362455557,0.09075704,98149.0,98133.0,0.0506988]
[1732362456480,0.09075704,98148.0,98133.0,0.0506988]
[1732362456711,0.0017218,98150.0,98133.0,0.0506988]
[1732362456712,0.09075704,98149.0,98133.0,0.0506988]
[1732362457139,0.09086428,98149.0,98133.0,0.0506988]
[1732362457378,0.09086428,98148.0,98133.0,0.0506988]
[1732362458381,0.09086428,98147.0,98133.0,0.0506988]
[1732362460474,0.09086428,98146.0,98133.0,0.0506988]
[1732362461591,0.09086428,98145.0,98133.0,0.0506988]
[1732362461849,0.0017218,98150.0,98133.0,0.0506988]
[1732362462062,0.09094667,98145.0,98133.0,0.0506988]
[1732362462281,0.09094667,98141.0,98133.0,0.0506988]
[1732362462713,0.09096303,98143.0,98133.0,0.0506988]
[1732362463177,0.13642,98147.0,98133.0,0.0506988]
[1732362463402,0.13642,98148.0,98133.0,0.0506988]
[1732362464399,0.13642,98147.0,98133.0,0.0506988]
[1732362465237,0.13642,98146.0,98133.0,0.0506988]
[1732362466070,0.13653957,98146.0,98133.0,0.0506988]
[1732362466284,0.13653957,98145.0,98133.0,0.0506988]
[1732362466939,0.13654397,98145.0,98133.0,0.0506988]
[1732362467380,0.13654397,98144.0,98133.0,0.0506988]
[1732362467807,0.13658531,98145.0,98133.0,0.0506988]
[1732362468243,0.18205863,98147.0,98133.0,0.0506988]
[1732362468459,0.33624773,98146.0,98133.0,0.0506988]
[1732362468661,0.18205863,98148.0,98133.0,0.0506988]
[1732362469278,0.18205863,98146.0,98133.0,0.0506988]
[1732362470176,0.18205863,98146.0,98134.0,0.00459929]
[1732362470395,0.18205863,98144.0,98134.0,0.00459929]
[1732362470606,0.51830638,98144.0,98135.0,0.05028134]
[1732362470851,0.51830638,98144.0,98133.0,0.0506988]
[1732362470852,0.05466768,98144.0,98133.0,0.0506988]
[1732362471073,0.23844811,98150.0,98133.0,0.0506988]
[1732362471288,0.18205863,98146.0,98133.0,0.0506988]
[1732362471624,0.18255923,98142.0,98133.0,0.0506988]
[1732362472069,0.02055923,98142.0,98133.0,0.0506988]
[1732362472283,0.02055923,98142.0,98135.0,0.05028134]
[1732362472505,0.22819904,98146.0,98135.0,0.05028134]
[1732362472506,0.22819904,98147.0,98136.0,0.00460054]
[1732362472930,0.28458852,98150.0,98136.0,0.00460054]
[1732362473144,0.22819904,98148.0,98135.0,0.05028134]
[1732362473359,0.22819904,98147.0,98135.0,0.05028134]
[1732362473571,0.22819904,98146.0,98135.0,0.05028134]
[1732362473792,0.22819904,98146.0,98136.0,0.0046042]
[1732362474022,0.22819904,98146.0,98137.0,0.05050284]
[1732362474522,0.22819904,98146.0,98138.0,0.00460351]
[1732362474741,0.22819904,98146.0,98133.0,0.0506988]
[1732362474940,0.09128865,98134.0,98133.0,0.0506988]
[1732362475467,0.22819904,98147.0,98133.0,0.0506988]
[1732362476430,0.22819904,98148.0,98133.0,0.0506988]
[1732362476847,0.13693553,98139.0,98133.0,0.0506988]
[1732362477290,0.13693551,98140.0,98133.0,0.0506988]
[1732362477513,0.28458852,98150.0,98133.0,0.0506988]
[1732362477924,0.22819904,98149.0,98133.0,0.0506988]
[1732362480032,0.18258397,98145.0,98133.0,0.0515593]
[1732362480943,0.18258397,98144.0,98133.0,0.0515593]
[1732362481360,0.02058397,98145.0,98133.0,0.0515593]
[1732362481571,0.02058397,98147.0,98133.0,0.0515593]
[1732362481990,0.001721,98149.0,98133.0,0.0515593]
[1732362482413,0.22992004,98149.0,98133.0,0.0515593]
[1732362483586,0.22819904,98148.0,98133.0,0.0515593]
[1732362484018,0.22992004,98149.0,98133.0,0.0515593]
[1732362484451,0.22992004,98149.0,98134.0,0.0452]
[1732362484655,0.22992004,98149.0,98134.0,0.04981388]
[1732362484900,0.22994954,98149.0,98134.0,0.04981388]
[1732362485329,0.22994954,98149.0,98135.0,0.05028134]
[1732362485539,0.22822854,98148.0,98135.0,0.05028134]
[1732362485749,0.22822854,98148.0,98136.0,0.00461342]
[1732362486200,0.56522214,98148.0,98136.0,0.00461342]
[1732362486411,0.13693707,98137.0,98136.0,0.00461342]
[1732362486868,0.13693707,98138.0,98136.0,0.05470314]
[1732362487273,0.13693707,98137.0,98136.0,0.05470314]
[1732362488579,0.13693707,98137.0,98136.0,0.13760314]
[1732362489712,0.13693906,98137.0,98136.0,0.13760314]
[1732362490863,0.13693906,98140.0,98136.0,0.18690314]
[1732362491133,0.18258541,98142.0,98136.0,0.18690314]
[1732362491134,0.13693906,98138.0,98136.0,0.18690314]
[1732362491585,0.51957923,98137.0,98136.0,0.18690314]
[1732362492040,0.18258541,98137.0,98136.0,0.18690314]
[1732362492695,0.56522559,98139.0,98136.0,0.18690314]
[1732362492910,0.33699382,98138.0,98136.0,0.18690314]
[1732362493119,0.33699382,98137.0,98136.0,0.18690314]
[1732362494473,0.22823177,98139.0,98136.0,0.18690314]
[1732362498672,0.33699382,98138.0,98136.0,0.18690314]
[1732362498877,0.33699382,98137.0,98136.0,0.18690314]
[1732362499307,0.27387812,98146.0,98136.0,0.18690314]
[1732362502811,0.001721,98149.0,98111.0,0.0509888]
[1732362502812,0.18258836,98139.0,98111.0,0.0509888]
[1732362503053,0.09129418,98130.0,98111.0,0.07014113]
[1732362503679,0.09129418,98130.0,98111.0,0.0509888]
[1732362505820,0.09129418,98130.0,98117.0,0.05089049]
[1732362506036,0.09129418,98130.0,98120.0,0.05019911]
[1732362506248,0.09129418,98130.0,98122.0,0.0466]
[1732362506704,0.09129418,98130.0,98123.0,0.05087465]
[1732362507597,0.09129418,98130.0,98124.0,0.129]
[1732362507829,0.09129418,98130.0,98125.0,0.05050429]
[1732362508497,0.09129429,98130.0,98125.0,0.05050429]
[1732362512867,0.09129429,98127.0,98125.0,0.05050429]
[1732362514650,0.09129429,98128.0,98125.0,0.05050429]
[1732362516012,0.25,98136.0,98125.0,0.05050429]
[1732362516013,0.09129429,98130.0,98125.0,0.05050429]
[1732362516269,0.09301549,98130.0,98125.0,0.05050429]
[1732362516713,0.0017212,98130.0,98125.0,0.05050429]
[1732362516929,0.09129429,98129.0,98125.0,0.05050429]
[1732362517358,0.09129429,98128.0,98125.0,0.05050429]
[1732362518019,0.09129429,98129.0,98125.0,0.05050429]
[1732362518234,0.09130299,98129.0,98125.0,0.05050429]
[1732362522208,0.0017212,98130.0,98125.0,0.05050429]
[1732362522434,0.0017212,98130.0,98128.0,0.0481]
[1732362522860,0.0017212,98130.0,98129.0,0.05005516]
[1732362529822,0.0017212,98130.0,98129.0,0.17405516]
[1732362531967,0.0017212,98130.0,98120.0,0.05019911]
[1732362532191,0.0017212,98130.0,98120.0,0.15953447]
[1732362535073,0.0017212,98130.0,98121.0,0.124]
[1732362535456,0.0017212,98130.0,98122.0,0.05083448]
[1732362542825,0.0017212,98130.0,98121.0,0.05050094]
[1732362544419,0.0017212,98130.0,98121.0,0.05051931]
[1732362545764,0.0017212,98130.0,98123.0,0.05092736]
[1732362549049,0.0017212,98130.0,98120.0,0.10933536]
[1732362549050,0.0017212,98130.0,98121.0,0.05051931]
[1732362550563,0.03931918,98134.0,98121.0,0.05051931]
[1732362550768,0.03931918,98134.0,98124.0,0.05466768]
[1732362551203,0.03931918,98134.0,98125.0,0.05029899]
[1732362553845,0.04104018,98134.0,98125.0,0.05029899]
[1732362556177,0.04104018,98134.0,98115.0,0.05088494]
[1732362556424,0.04104018,98134.0,98124.0,0.05466768]
[1732362556884,0.04104018,98134.0,98125.0,0.05055596]
[1732362559428,0.04104018,98134.0,98114.0,0.19730191]
[1732362559429,0.04104018,98134.0,98124.0,0.05466768]
[1732362559886,0.001721,98134.0,98125.0,0.05055596]
[1732362565581,0.001721,98134.0,98124.0,0.05466768]
[1732362566328,0.001721,98134.0,98125.0,0.05055596]
[1732362566329,0.02955645,98133.0,98125.0,0.05055596]
[1732362568210,0.0476,98132.0,98125.0,0.05055596]
[1732362568438,0.02955645,98131.0,98125.0,0.05055596]
[1732362569904,0.0476,98132.0,98125.0,0.05055596]
[1732362572549,0.0471,98132.0,98125.0,0.05055596]
[1732362573473,0.0471,98132.0,98124.0,0.05006325]
[1732362573930,0.0471,98132.0,98124.0,0.14128473]
[1732362574425,0.0471,98132.0,98124.0,0.05006325]
[1732362574667,0.02955735,98131.0,98124.0,0.05006325]
[1732362574933,0.06038889,98138.0,98121.0,0.05085616]
[1732362575184,0.06038889,98138.0,98135.0,0.05078681]
[1732362575410,0.06038889,98138.0,98134.0,0.1367635]
[1732362575411,0.06038889,98138.0,98137.0,0.14158357]
[1732362576400,0.06038889,98138.0,98136.0,0.05025596]
[1732362576889,0.06038889,98138.0,98136.0,0.14138892]
[1732362577413,0.06038889,98138.0,98136.0,0.05025596]
[1732362577882,0.0476,98137.0,98136.0,0.05025596]
[1732362578340,0.0476,98137.0,98135.0,0.05078681]
[1732362581907,0.046554,98137.0,98135.0,0.05078681]
[1732362582130,0.046054,98137.0,98135.0,0.05078681]
[1732362583822,0.046054,98137.0,98125.0,0.1376239]
[1732362583823,0.046054,98137.0,98127.0,0.14564405]
[1732362584083,0.046054,98137.0,98128.0,0.05018275]
[1732362585728,0.06210969,98138.0,98128.0,0.05018275]
[1732362592278,0.06210969,98138.0,98128.0,0.05104315]
[1732362594814,0.00119991,98154.0,98128.0,0.06693444]
[1732362595080,0.13690641,98172.0,98128.0,0.06693444]
[1732362595081,1.07284279,98165.0,98131.0,0.05068927]
[1732362595305,1.47768109,98165.0,98131.0,0.05068927]
[1732362597926,0.1288,98163.0,98131.0,0.05068927]
[1732362598184,0.0466,98161.0,98131.0,0.05068927]
[1732362598432,0.1288,98154.0,98131.0,0.05068927]
[1732362598678,0.0822,98152.0,98131.0,0.05068927]
[1732362601481,0.0802,98152.0,98131.0,0.05068927]
[1732362604805,0.0486,98149.0,98131.0,0.05067593]
[1732362605050,0.0812,98148.0,98133.0,0.05099162]
[1732362605722,0.0812,98148.0,98132.0,0.05005942]
[1732362608820,0.0812,98148.0,98130.0,0.05466768]
[1732362609048,0.0822,98144.0,98131.0,0.05027529]
[1732362609273,0.0454,98143.0,98131.0,0.05027529]
[1732362611070,0.04168956,98143.0,98131.0,0.05027529]
[1732362613206,0.00459257,98143.0,98131.0,0.05027529]
[1732362613454,0.07982907,98144.0,98131.0,0.05027529]
[1732362614144,0.07982907,98144.0,98135.0,0.0501844]
[1732362614368,0.05874587,98144.0,98132.0,0.05049693]
[1732362614823,0.04441297,98144.0,98131.0,0.05027529]
[1732362615042,0.04441297,98144.0,98131.0,0.07343613]
[1732362615271,0.04441297,98144.0,98131.0,0.05027529]
[1732362615767,1.47768109,98165.0,98131.0,0.05027529]
[1732362615768,0.04598905,98163.0,98131.0,0.05027529]
[1732362616010,1.47768109,98165.0,98131.0,0.05027529]
[1732362616227,1.47768109,98165.0,98132.0,0.01960316]
[1732362616450,1.47768109,98165.0,98131.0,0.05027529]
[1732362616451,0.0454,98164.0,98131.0,0.05027529]
[1732362616673,0.0454,98164.0,98131.0,0.05113549]
[1732362617115,0.0017204,98152.0,98131.0,0.05113549]
[1732362617333,0.0454,98151.0,98132.0,0.01968918]
[1732362617773,0.0454,98151.0,98133.0,0.0503172]
[1732362618810,0.0822,98150.0,98133.0,0.0503172]
[1732362620141,0.0822,98150.0,98133.0,0.14140585]
[1732362621699,0.0822,98150.0,98133.0,0.0503172]
[1732362621942,0.0822,98150.0,98133.0,0.14153547]
[1732362623077,0.0822,98150.0,98134.0,0.09121827]
[1732362623513,0.0822,98150.0,98135.0,0.0501844]
[1732362624390,0.0822,98150.0,98135.0,0.14140267]
[1732362625512,0.0822,98150.0,98136.0,0.09121827]
[1732362625766,0.0822,98150.0,98140.0,0.05466768]
[1732362626220,0.0822,98150.0,98141.0,0.05056281]
[1732362628510,0.0822,98150.0,98147.0,0.09125581]
[1732362628748,0.0822,98150.0,98142.0,0.18251162]
[1732362628749,0.0822,98150.0,98148.0,0.05009909]
[1732362628989,0.0822,98150.0,98142.0,0.09125581]
[1732362628990,0.0822,98150.0,98143.0,0.05009776]
[1732362629872,0.0822,98150.0,98143.0,0.14135357]
[1732362630092,0.0822,98150.0,98143.0,0.05009776]
[1732362632134,0.07076862,98150.0,98143.0,0.05009776]
[1732362632584,0.06610241,98150.0,98143.0,0.05009776]
[1732362633042,0.06610241,98150.0,98142.0,0.05093152]
[1732362635355,0.06610241,98150.0,98141.0,0.05056281]
[1732362636917,0.06610241,98150.0,98141.0,0.14181176]
[1732362637378,0.06610241,98150.0,98142.0,0.09124895]
[1732362637593,0.06610241,98150.0,98141.0,0.14181176]
[1732362638045,0.06610241,98150.0,98142.0,0.09124895]
[1732362638285,0.06610241,98150.0,98143.0,0.05009776]
[1732362638727,0.06610241,98150.0,98142.0,0.05093152]
[1732362639394,0.06610241,98150.0,98142.0,0.14218047]
[1732362639631,0.0017202,98165.0,98140.0,0.05466768]
[1732362639632,1.16747694,98166.0,98141.0,0.05056281]
[1732362640291,0.66032931,98166.0,98141.0,0.05056281]
[1732362640504,0.66032931,98166.0,98141.0,0.05142301]
[1732362640730,0.0017204,98150.0,98141.0,0.05142301]
[1732362643813,0.02806508,98153.0,98141.0,0.05142301]
[1732362650105,0.0487,98154.0,98141.0,0.05142301]
[1732362653128,0.0504204,98154.0,98141.0,0.05142301]
[1732362653348,0.0503204,98154.0,98141.0,0.05142301]
[1732362653813,0.0503204,98154.0,98141.0,0.07826785]
[1732362654253,0.0503204,98154.0,98138.0,0.05087437]
[1732362654481,0.0503204,98154.0,98141.0,0.05079436]
[1732362655392,0.0503204,98154.0,98137.0,0.05072157]
[1732362659593,0.02352602,98154.0,98137.0,0.05072157]
[1732362660519,0.02342602,98154.0,98137.0,0.05072157]
[1732362660973,0.02342602,98154.0,98140.0,0.05466768]
[1732362661179,0.02342602,98154.0,98141.0,0.05079436]
[1732362661639,0.02342602,98154.0,98137.0,0.05072157]
[1732362664311,0.04260813,98154.0,98137.0,0.05072157]
[1732362664783,0.04260813,98154.0,98137.0,0.05158177]
[1732362666739,0.04260813,98154.0,98137.0,0.1428191]
[1732362668042,0.02342602,98154.0,98137.0,0.1428191]
[1732362668258,0.0788,98153.0,98136.0,0.09124404]
[1732362668463,0.0471,98152.0,98137.0,0.05063135]
[1732362669097,0.0471,98152.0,98132.0,0.05004908]
[1732362669314,0.01276204,98151.0,98132.0,0.05004908]
[1732362669532,0.0471,98152.0,98132.0,0.05004908]
[1732362671525,0.0471,98152.0,98141.0,0.05049484]
[1732362678208,0.0296702,98151.0,98141.0,0.14175754]
[1732362678429,0.0473,98150.0,98141.0,0.05049484]
[1732362678636,0.0296702,98149.0,98141.0,0.05049484]
[1732362679071,0.0296702,98149.0,98141.0,0.14175754]
[1732362680032,0.07590662,98153.0,98141.0,0.05049484]
[1732362680270,0.06359003,98153.0,98141.0,0.05049484]
[1732362683170,0.0457,98152.0,98141.0,0.05049484]
[1732362684740,0.06359003,98153.0,98141.0,0.05049484]
[1732362687606,0.08381151,98153.0,98141.0,0.05049484]
[1732362687829,0.06359003,98153.0,98141.0,0.05049484]
[1732362690236,0.06359003,98153.0,98141.0,0.1417758]
[1732362690237,0.02957393,98152.0,98141.0,0.1417758]
[1732362691127,0.02409837,98152.0,98141.0,0.1417758]
[1732362691582,0.02409837,98152.0,98141.0,0.05049484]
[1732362693542,0.06531083,98153.0,98151.0,0.22820241]
[1732362693759,0.06531083,98153.0,98146.0,0.05055217]
[1732362693986,0.06531083,98153.0,98152.0,0.14159639]
[1732362694207,0.06531083,98153.0,98150.0,0.13689194]
[1732362694208,0.06531083,98153.0,98150.0,0.05036798]
[1732362694833,0.06531083,98153.0,98149.0,0.05022217]
[1732362696191,0.01899463,98152.0,98148.0,0.05018963]
[1732362696402,0.01899463,98151.0,98148.0,0.05018963]
[1732362696631,0.01899463,98150.0,98148.0,0.05018963]
[1732362696843,0.06531083,98153.0,98148.0,0.05018963]
[1732362696844,0.01899463,98149.0,98148.0,0.14145833]
[1732362697277,0.01899463,98149.0,98148.0,0.05018963]
[1732362697690,0.01898969,98149.0,98148.0,0.05018963]
[1732362698543,0.01898969,98149.0,98148.0,0.09081563]
[1732362701011,0.0189869,98149.0,98148.0,0.09081563]
[1732362702114,0.0017208,98153.0,98148.0,0.09081563]
[1732362706026,0.0017208,98153.0,98142.0,0.05027299]
[1732362706473,0.0017208,98153.0,98144.0,0.0502586]
[1732362706699,0.0795208,98153.0,98144.0,0.0502586]
[1732362707146,0.0795208,98153.0,98143.0,0.040626]
[1732362707147,0.01898831,98152.0,98150.0,0.05042726]
[1732362707369,0.01898831,98151.0,98149.0,0.05007993]
[1732362707592,0.0795208,98153.0,98151.0,0.0506263]
[1732362707846,0.0017208,98153.0,98152.0,0.0682659]
[1732362708086,0.01897812,98153.0,98152.0,0.0682659]
[1732362708302,0.03036546,98153.0,98152.0,0.25040071]
[1732362708523,0.03036546,98165.0,98152.0,0.25040071]
[1732362708819,0.03036546,98164.0,98156.0,0.13660068]
[1732362709043,0.03036546,98163.0,98159.0,0.05055277]
[1732362709277,0.03036546,98162.0,98159.0,0.05055277]
[1732362709502,0.03036546,98161.0,98159.0,0.05055277]
[1732362709736,1.19293449,98166.0,98159.0,0.05055277]
[1732362709737,0.03036546,98160.0,98159.0,0.05055277]
[1732362710827,0.03036546,98165.0,98153.0,0.05031413]
[1732362711034,0.02879711,98164.0,98156.0,0.05065936]
[1732362711273,1.1748458,98166.0,98158.0,0.05078484]
[1732362711503,1.15576456,98166.0,98158.0,0.05078484]
[1732362711724,1.14168821,98166.0,98158.0,0.05078484]
[1732362712397,1.11199387,98166.0,98158.0,0.05078484]
[1732362712605,1.09323955,98166.0,98158.0,0.05078484]
[1732362712839,1.08849677,98166.0,98158.0,0.05078484]
[1732362713056,1.08849677,98166.0,98158.0,0.06791223]
[1732362713698,1.05303342,98166.0,98159.0,0.03217264]
[1732362713934,1.05303342,98166.0,98160.0,0.05086775]
[1732362714162,1.00779058,98166.0,98160.0,0.05086775]
[1732362714606,1.00779058,98166.0,98156.0,0.05065936]
[1732362716434,0.95906451,98166.0,98156.0,0.05065936]
[1732362716678,0.95906451,98166.0,98158.0,0.05078484]
[1732362718931,0.93047117,98166.0,98158.0,0.05078484]
[1732362720213,0.01893154,98165.0,98156.0,0.05065936]
[1732362720431,0.01893154,98164.0,98156.0,0.05065936]
[1732362720638,0.01893154,98163.0,98156.0,0.05065936]
[1732362720860,0.93047117,98166.0,98156.0,0.05065936]
[1732362720861,0.01893154,98162.0,98156.0,0.05065936]
[1732362721530,0.01893154,98161.0,98156.0,0.05065936]
[1732362721754,0.01893154,98160.0,98156.0,0.05065936]
[1732362721957,0.01893154,98159.0,98156.0,0.05065936]
[1732362722160,0.93047117,98166.0,98156.0,0.05065936]
[1732362722161,0.01893154,98158.0,98156.0,0.05065936]
[1732362722391,0.01893154,98157.0,98156.0,0.05065936]
[1732362722593,0.92684941,98166.0,98156.0,0.05065936]
[1732362722844,0.92522549,98166.0,98156.0,0.05065936]
[1732362723020,0.92522549,98166.0,98157.0,0.04065878]